fUST/lending_fUST_20241013
["ID","MTS","AMOUNT","RATE_DAILY","PERIOD"]
[340198976,1728826243243,-1286.17,0.00028767,2]
[340198977,1728826243252,-500.0,0.00028767,2]
[340198978,1728826243261,-3805.75,0.00028767,2]
[340198979,1728826243270,-500.0,0.00028767,2]
[340198980,1728826243279,-40443.43,0.00028767,2]
[340198981,1728826243288,-1917.26,0.00028767,2]
[340198982,1728826243298,-570.3679955,0.00028767,2]
[340198983,1728826243306,-630.46,0.00028767,2]
[340198984,1728826243315,-500.0,0.00028767,2]
[340198985,1728826243324,-595.15861655,0.00028767,2]
[340198986,1728826243333,-511.53186389,0.00028767,2]
[340198987,1728826243342,-500.0,0.00028767,2]
[340198988,1728826243351,-1643.64,0.00028767,2]
[340198989,1728826243360,-3082.22227407,0.00028887,2]
[340198990,1728826243369,-507.4271702,0.00028942,5]
[340198991,1728826243378,-5941.98393832,0.00029,2]
[340198992,1728826243387,-500.0,0.00029,2]
[340198993,1728826243396,-10007.93,0.00029041,2]
[340198994,1728826243405,-831.87,0.00029041,2]
[340198995,1728826243414,-500.0,0.00029041,2]
[340198996,1728826243423,-2496.31,0.00029041,2]
[340198997,1728826243432,-500.0,0.00029041,2]
[340198998,1728826243442,-1286.17,0.00029041,2]
[340198999,1728826243453,-500.0,0.00029041,2]
[340199000,1728826243462,-3805.75,0.00029041,2]
[340199001,1728826243472,-500.0,0.00029041,2]
[340199002,1728826243481,-40443.43,0.00029041,2]
[340199003,1728826243490,-1917.26,0.00029041,2]
[340199004,1728826243500,-630.46,0.00029041,2]
[340199005,1728826243509,-500.0,0.00029041,2]
[340199006,1728826243518,-500.0,0.00029041,2]
[340199007,1728826243529,-1643.64,0.00029041,2]
[340199008,1728826243538,-587.0,0.00029064,2]
[340199009,1728826243607,-151.236,0.00029081,2]
[340199010,1728826243619,-159.075055,0.000292,5]
[340199011,1728826243628,-10007.93,0.00029315,2]
[340199012,1728826243637,-831.87,0.00029315,2]
[340199013,1728826243646,-500.0,0.00029315,2]
[340199014,1728826243656,-2496.31,0.00029315,2]
[340199015,1728826243667,-500.0,0.00029315,2]
[340199016,1728826243676,-1286.17,0.00029315,2]
[340199017,1728826243686,-151.0,0.00029315,7]
[340199018,1728826243696,-500.0,0.00029315,2]
[340199019,1728826243706,-3805.75,0.00029315,2]
[340199020,1728826243715,-500.0,0.00029315,2]
[340199021,1728826243724,-40443.43,0.00029315,2]
[340199022,1728826243733,-198.520528,0.00029315,7]
[340199023,1728826243742,-1917.26,0.00029315,2]
[340199024,1728826243752,-198.520528,0.00029315,7]
[340199025,1728826243761,-182.097533,0.00029315,7]
[340199026,1728826243770,-182.097533,0.00029315,7]
[340199027,1728826243779,-630.46,0.00029315,2]
[340199028,1728826243788,-500.0,0.00029315,2]
[340199029,1728826243797,-158.771688,0.00029315,7]
[340199030,1728826243807,-158.771688,0.00029315,7]
[340199031,1728826243816,-500.0,0.00029315,2]
[340199032,1728826243825,-1643.64,0.00029315,2]
[340199033,1728826243834,-1000.0,0.00029349,7]
[340199034,1728826243843,-500.0,0.00029349,2]
[340199035,1728826243853,-153.0,0.00029354,2]
[340199036,1728826243862,-153.0,0.00029354,2]
[340199037,1728826243871,-153.0,0.00029354,2]
[340199038,1728826243880,-153.0,0.00029354,2]
[340199039,1728826243890,-153.0,0.00029354,2]
[340199040,1728826243899,-153.0,0.00029354,2]
[340199041,1728826243909,-153.0,0.00029354,2]
[340199042,1728826243918,-153.0,0.00029354,2]
[340199043,1728826243928,-500.0,0.00029373,5]
[340199044,1728826243937,-1412.74726881,0.000294,60]
[340199045,1728826243947,-1000.0,0.00029577,5]
[340199046,1728826243956,-1000.0,0.00029577,5]
[340199047,1728826243965,-500.0,0.00029577,5]
[340199048,1728826243974,-1000.0,0.00029577,5]
[340199049,1728826243984,-177.22660455,0.00029577,5]
[340199050,1728826243993,-500.0,0.00029577,5]
[340199051,1728826244002,-10007.93,0.00029589,2]
[340199052,1728826244012,-831.87,0.00029589,2]
[340199053,1728826244021,-500.0,0.00029589,2]
[340199054,1728826244030,-2496.31,0.00029589,2]
[340199055,1728826244040,-500.0,0.00029589,2]
[340199056,1728826244049,-1286.17,0.00029589,2]
[340199057,1728826244059,-500.0,0.00029589,2]
[340199058,1728826244067,-3805.75,0.00029589,2]
[340199059,1728826244077,-500.0,0.00029589,2]
[340199060,1728826244086,-40443.43,0.00029589,2]
[340199061,1728826244095,-1917.26,0.00029589,2]
[340199062,1728826244105,-630.46,0.00029589,2]
[340199063,1728826244114,-500.0,0.00029589,2]
[340199064,1728826244123,-500.0,0.00029589,2]
[340199065,1728826244133,-1643.64,0.00029589,2]
[340199066,1728826244142,-194.06091182,0.00029606,23]
[340199067,1728826244151,-282.105,0.00029606,23]
[340199068,1728826244160,-500.0,0.00029675,5]
[340199069,1728826244170,-150.112233,0.000297,8]
[340199070,1728826244178,-150.0,0.000298,2]
[340199071,1728826244188,-8275.25,0.000298,30]
[340199072,1728826244198,-837.51623956,0.00029846,5]
[340199073,1728826244207,-500.0,0.00029846,5]
[340199074,1728826244217,-1500.0,0.00029846,5]
[340199075,1728826244226,-1500.0,0.00029846,5]
[340199076,1728826244235,-933.0,0.00029859,2]
[340199077,1728826244244,-1157.0,0.00029859,2]
[340199078,1728826244254,-10007.93,0.00029863,2]
[340199079,1728826244263,-831.87,0.00029863,2]
[340199080,1728826244273,-500.0,0.00029863,2]
[340199081,1728826244281,-2496.31,0.00029863,2]
[340199082,1728826244291,-500.0,0.00029863,2]
[340199083,1728826244300,-1286.17,0.00029863,2]
[340199084,1728826244309,-500.0,0.00029863,2]
[340199085,1728826244319,-3805.75,0.00029863,2]
[340199086,1728826244328,-500.0,0.00029863,2]
[340199087,1728826244337,-40443.43,0.00029863,2]
[340199088,1728826244347,-1917.26,0.00029863,2]
[340199089,1728826244356,-630.46,0.00029863,2]
[340199090,1728826244365,-500.0,0.00029863,2]
[340199091,1728826244374,-500.0,0.00029863,2]
[340199092,1728826244383,-153.0,0.00029863,2]
[340199093,1728826244392,-306.0928378,0.0002995,120]
[340199094,1728826244402,-587.0,0.0002995,2]
[340199095,1728826244411,-152.0,0.0002999,120]
[340199096,1728826244421,-2763.18,0.0003,14]
[340199097,1728826244430,-1257.12,0.0003,30]
[340199098,1728826244440,-288.0,0.0003,2]
[340199099,1728826244451,-272.90402714,0.0003,2]
[340199100,1728826244461,-152.0,0.0003005,2]
[340199101,1728826244470,-200.0,0.000301,22]
[340199102,1728826244479,-1000.0,0.00030136,120]
[340199103,1728826244489,-10007.93,0.00030136,2]
[340199104,1728826244498,-831.87,0.00030136,2]
[340199105,1728826244507,-500.0,0.00030136,2]
[340199106,1728826244516,-2496.31,0.00030136,2]
[340199107,1728826244526,-398.488836,0.00030136,7]
[340199108,1728826244536,-398.488836,0.00030136,7]
[340199109,1728826244546,-500.0,0.00030136,2]
[340199110,1728826244556,-1286.17,0.00030136,2]
[340199111,1728826244566,-520.994609,0.00030136,7]
[340199112,1728826244576,-520.994609,0.00030136,7]
[340199113,1728826244586,-151.0,0.00030136,7]
[340199114,1728826244595,-500.0,0.00030136,2]
[340199115,1728826244604,-3805.75,0.00030136,2]
[340199116,1728826244618,-151.0,0.00030136,7]
[340199117,1728826244627,-500.0,0.00030136,2]
[340199118,1728826244636,-40443.43,0.00030136,2]
[340199119,1728826244646,-1917.26,0.00030136,2]
[340199120,1728826244657,-151.0,0.00030136,7]
[340199121,1728826244666,-630.46,0.00030136,2]
[340199122,1728826244675,-500.0,0.00030136,2]
[340199123,1728826244686,-500.0,0.00030136,2]
[340199124,1728826244697,-152.0,0.0003015,15]
[340199125,1728826244706,-501.41845279,0.00030273,11]
[340199126,1728826244715,-502.483605,0.00030273,11]
[340199127,1728826244724,-334.5,0.00030281,2]
[340199128,1728826244734,-150.112233,0.000303,7]
[340199129,1728826244743,-1000.0,0.0003041,120]
[340199130,1728826244753,-10007.93,0.0003041,2]
[340199131,1728826244762,-831.87,0.0003041,2]
[340199132,1728826244771,-500.0,0.0003041,2]
[340199133,1728826244780,-2496.31,0.0003041,2]
[340199134,1728826244790,-500.0,0.0003041,2]
[340199135,1728826244799,-1286.17,0.0003041,2]
[340199136,1728826244809,-500.0,0.0003041,2]
[340199137,1728826244818,-3805.75,0.0003041,2]
[340199138,1728826244827,-500.0,0.0003041,2]
[340199139,1728826244837,-40443.43,0.0003041,2]
[340199140,1728826244846,-1917.26,0.0003041,2]
[340199141,1728826244856,-630.46,0.0003041,2]
[340199142,1728826244865,-500.0,0.0003041,2]
[340199143,1728826244930,-500.0,0.0003041,2]
[340199144,1728826244939,-150.0,0.00030479,2]
[340199145,1728826244951,-150.0,0.00030479,2]
[340199146,1728826244960,-150.112233,0.000305,7]
[340199147,1728826244971,-186.9983685,0.0003065,2]
[340199148,1728826244980,-1000.0,0.00030684,120]
[340199149,1728826244990,-10007.93,0.00030684,2]
[340199150,1728826244999,-831.87,0.00030684,2]
[340199151,1728826245009,-500.0,0.00030684,2]
[340199152,1728826245018,-2496.31,0.00030684,2]
[340199153,1728826245027,-500.0,0.00030684,2]
[340199154,1728826245036,-1286.17,0.00030684,2]
[340199155,1728826245046,-151.0,0.00030684,7]
[340199156,1728826245055,-500.0,0.00030684,2]
[340199157,1728826245065,-3805.75,0.00030684,2]
[340199158,1728826245075,-500.0,0.00030684,2]
[340199159,1728826245084,-40443.43,0.00030684,2]
[340199160,1728826245094,-198.520528,0.00030684,7]
[340199161,1728826245103,-198.520528,0.00030684,7]
[340199162,1728826245113,-1917.26,0.00030684,2]
[340199163,1728826245122,-182.097533,0.00030684,7]
[340199164,1728826245131,-182.097533,0.00030684,7]
[340199165,1728826245140,-630.46,0.00030684,2]
[340199166,1728826245149,-630.23119452,0.00030684,2]
[340199167,1728826245159,-158.771688,0.00030684,7]
[340199168,1728826245167,-158.771688,0.00030684,7]
[340199169,1728826245176,-500.0,0.00030684,2]
[340199170,1728826245186,-1096.48285948,0.00030719,7]
[340199171,1728826245194,-163.36209311,0.00030731,10]
[340199172,1728826245205,-151.0,0.00030733,7]
[340199173,1728826245214,-151.0,0.00030733,7]
[340199174,1728826245223,-151.0,0.00030733,7]
[340199175,1728826245233,-151.0,0.00030733,7]
[340199176,1728826245242,-1232.790792,0.00030733,7]
[340199177,1728826245252,-1232.790792,0.00030733,7]
[340199178,1728826245261,-235.524363,0.00030733,7]
[340199179,1728826245270,-151.0,0.00030733,7]
[340199180,1728826245279,-235.524363,0.00030733,7]
[340199181,1728826245288,-151.0,0.00030733,7]
[340199182,1728826245298,-151.0,0.00030733,7]
[340199183,1728826245307,-398.488836,0.00030733,7]
[340199184,1728826245316,-254.2926003,0.00030733,7]
[340199185,1728826245432,-144.1962357,0.00030733,7]
[340199186,1728826245441,-520.994609,0.00030733,7]
[340199187,1728826245451,-65.54164451,0.00030733,7]
[340199188,1728826245570,-1643.64,0.00029863,2]
[340199189,1728826245579,-1524.0712615,0.00030136,2]
[340199190,1728826245590,-119.5687385,0.00030136,2]
[340199191,1728826245600,-1643.64,0.0003041,2]
[340199192,1728826245612,-202.21719485,0.00030684,2]
[340199193,1728826288375,166.666666,0.00023799,2]
[340199197,1728826389394,269.369365,0.00023989,2]
[340199198,1728826430137,250.0,0.00023966,2]
[340199199,1728826445075,596.477665,0.00023966,2]
[340199201,1728826527801,480.6425608,0.00023909,2]
[340199202,1728826562696,2245.8773716,0.00023922,2]
[340199203,1728826659240,24900.0,0.00023907,2]
[340199204,1728826672947,168.7742759,0.00023576,2]
[340199207,1728826891530,166.666666,0.0002323,2]
[340199208,1728826891779,166.666666,0.00023863,2]
[340199209,1728826902689,269.3693655,0.00023626,2]
[340199211,1728826924846,1877.5637237,0.00023835,2]
[340199213,1728827085838,397.651776,0.00023654,2]
[340199219,1728827190122,1209.1992536,0.00023777,2]
[340199220,1728827202247,3102.93,0.00024,2]
[340199221,1728827225203,-250.0,0.00024038,2]
[340199222,1728827225227,-250.0,0.00024104,2]
[340199223,1728827225251,-250.0,0.0002417,2]
[340199224,1728827225274,-250.0,0.00024235,2]
[340199225,1728827225302,-250.0,0.00024301,2]
[340199226,1728827225323,-397.651776,0.00024339,2]
[340199227,1728827225344,-250.0,0.00024367,2]
[340199228,1728827225367,-250.0,0.00024433,2]
[340199229,1728827225389,-166.666666,0.00024497,2]
[340199230,1728827225411,-250.0,0.00024499,2]
[340199231,1728827225433,-250.0,0.00024565,2]
[340199232,1728827225454,-150.0,0.00024606,2]
[340199233,1728827225477,-250.0,0.00024631,2]
[340199234,1728827225500,-300.0,0.00024681,2]
[340199235,1728827225522,-300.0,0.00024681,2]
[340199236,1728827225548,-13837.4009418,0.00024682,2]
[340199237,1728827233184,-8108.12487122,0.00024682,2]
[340199238,1728827247115,-352.62609366,0.00024682,2]
[340199254,1728827301704,24900.0,0.00023705,2]
[340199256,1728827355432,1275.46921407,0.00023992,2]
[340199257,1728827357132,-250.0,0.00024091,2]
[340199258,1728827357157,-250.0,0.00024158,2]
[340199259,1728827357179,-250.0,0.00024224,2]
[340199260,1728827357201,-250.0,0.0002429,2]
[340199261,1728827357222,-250.0,0.00024356,2]
[340199262,1728827357246,-250.0,0.00024422,2]
[340199263,1728827357269,-250.0,0.00024488,2]
[340199264,1728827357292,-250.0,0.00024554,2]
[340199265,1728827357316,-250.0,0.0002462,2]
[340199266,1728827357342,-210.66926571,0.00024682,2]
[340199267,1728827357367,-250.0,0.00024686,2]
[340199268,1728827357391,-250.0,0.00024752,2]
[340199269,1728827357416,-250.0,0.00024818,2]
[340199270,1728827357440,-250.0,0.00024884,2]
[340199271,1728827357462,-428.1111105,0.00024893,2]
[340199272,1728827357486,-250.0,0.00024951,2]
[340199273,1728827357507,-300.0,0.00024972,2]
[340199274,1728827357527,-300.0,0.00024972,2]
[340199275,1728827357550,-500.0,0.00024973,2]
[340199276,1728827357570,-311.16673681,0.00024973,2]
[340199277,1728827357591,-500.0,0.00024973,2]
[340199278,1728827357612,-500.0,0.00024973,2]
[340199279,1728827357635,-618.51539413,0.00024973,2]
[340199280,1728827357657,-518.67647806,0.00024973,2]
[340199282,1728827357681,-500.0,0.00024973,2]
[340199283,1728827357702,-500.0,0.00024973,2]
[340199284,1728827357724,-500.0,0.0002499,2]
[340199285,1728827357748,-500.0,0.0002499,2]
[340199286,1728827357871,-500.0,0.0002499,2]
[340199287,1728827357895,-500.0,0.0002499,2]
[340199288,1728827357917,-500.0,0.0002499,2]
[340199289,1728827357939,-500.0,0.0002499,2]
[340199290,1728827357963,-500.0,0.0002499,2]
[340199291,1728827357985,-500.0,0.0002499,2]
[340199292,1728827358008,-537.0259467,0.0002499,2]
[340199293,1728827358029,-500.0,0.0002499,2]
[340199294,1728827358051,-500.0,0.0002499,2]
[340199296,1728827358074,-500.0,0.0002499,2]
[340199297,1728827358094,-240.02197827,0.0002499,2]
[340199298,1728827358115,-500.0,0.0002499,2]
[340199299,1728827358139,-500.0,0.0002499,2]
[340199300,1728827358163,-500.0,0.0002499,2]
[340199301,1728827358186,-500.0,0.0002499,2]
[340199302,1728827358209,-500.0,0.0002499,2]
[340199303,1728827358230,-500.0,0.0002499,2]
[340199304,1728827358254,-500.0,0.0002499,2]
[340199305,1728827358279,-500.0,0.0002499,2]
[340199306,1728827358300,-500.0,0.0002499,2]
[340199307,1728827358322,-500.0,0.0002499,2]
[340199308,1728827358343,-336.45859452,0.0002499,2]
[340199315,1728827406824,166.666666,0.00024255,2]
[340199337,1728827432310,-39.18067707,0.0002489,2]
[340199338,1728827432322,-3789.86096372,0.0002489,2]
[340199342,1728827438133,-500.0,0.00024889,2]
[340199343,1728827438144,-163.97419868,0.0002489,2]
[340199344,1728827438154,-500.0,0.00024915,2]
[340199345,1728827438165,-166.666666,0.00024916,2]
[340199346,1728827438175,-300.0,0.00024989,2]
[340199347,1728827438185,-300.0,0.00024989,2]
[340199348,1728827438197,-500.0,0.00024989,2]
[340199349,1728827438207,-500.0,0.00024989,2]
[340199350,1728827438217,-500.0,0.00024989,2]
[340199351,1728827438230,-500.0,0.00024989,2]
[340199352,1728827438240,-500.0,0.00024989,2]
[340199353,1728827438249,-500.0,0.00024989,2]
[340199354,1728827438259,-500.0,0.00024989,2]
[340199355,1728827438269,-462.18488026,0.00024989,2]
[340199356,1728827438278,-500.0,0.00024989,2]
[340199357,1728827438289,-500.0,0.00024989,2]
[340199358,1728827438299,-500.0,0.00024989,2]
[340199359,1728827438310,-500.0,0.00024989,2]
[340199360,1728827438321,-500.0,0.00024989,2]
[340199361,1728827438333,-500.0,0.00024989,2]
[340199362,1728827438344,-500.0,0.00024989,2]
[340199363,1728827438353,-500.0,0.00024989,2]
[340199364,1728827438365,-500.0,0.00024989,2]
[340199365,1728827438377,-500.0,0.00024989,2]
[340199366,1728827438387,-500.0,0.00024989,2]
[340199367,1728827438398,-500.0,0.00024989,2]
[340199368,1728827438408,-500.0,0.00024989,2]
[340199369,1728827438418,-500.0,0.00024989,2]
[340199370,1728827438427,-500.0,0.00024989,2]
[340199371,1728827438436,-500.0,0.00024989,2]
[340199372,1728827438446,-500.0,0.00024989,2]
[340199373,1728827438455,-500.0,0.00024989,2]
[340199374,1728827438466,-500.0,0.00024989,2]
[340199375,1728827438475,-500.0,0.00024989,2]
[340199376,1728827438485,-500.0,0.00024989,2]
[340199377,1728827438495,-500.0,0.00024989,2]
[340199378,1728827438504,-500.0,0.00024989,2]
[340199379,1728827438514,-500.0,0.00024989,2]
[340199380,1728827438524,-500.0,0.00024989,2]
[340199381,1728827438534,-500.0,0.00024989,2]
[340199382,1728827438545,-424.40048446,0.00024989,2]
[340199383,1728827438557,-500.0,0.00024989,2]
[340199384,1728827438567,-500.0,0.00024989,2]
[340199385,1728827438581,-500.0,0.00024989,2]
[340199386,1728827438592,-500.0,0.00024989,2]
[340199387,1728827438602,-500.0,0.00024989,2]
[340199388,1728827438612,-500.0,0.00024989,2]
[340199389,1728827438623,-500.0,0.00024989,2]
[340199390,1728827438634,-500.0,0.00024989,2]
[340199391,1728827438645,-500.0,0.00024989,2]
[340199392,1728827438655,-500.0,0.00024989,2]
[340199393,1728827438665,-500.0,0.00024989,2]
[340199394,1728827438676,-500.0,0.00024989,2]
[340199395,1728827438686,-500.0,0.00024989,2]
[340199396,1728827438695,-500.0,0.00024989,2]
[340199397,1728827438708,-500.0,0.00024989,2]
[340199398,1728827438719,-500.0,0.00024989,2]
[340199399,1728827438728,-500.0,0.00024989,2]
[340199400,1728827438738,-500.0,0.00024989,2]
[340199401,1728827438748,-500.0,0.00024989,2]
[340199402,1728827438757,-500.0,0.00024989,2]
[340199403,1728827438767,-500.0,0.00024989,2]
[340199404,1728827438778,-354.93573965,0.00024989,2]
[340199405,1728827438788,-500.0,0.00024989,2]
[340199406,1728827438798,-500.0,0.00024989,2]
[340199407,1728827438808,-500.0,0.00024989,2]
[340199408,1728827438819,-500.0,0.00024989,2]
[340199409,1728827438829,-500.0,0.00024989,2]
[340199410,1728827438840,-500.0,0.00024989,2]
[340199411,1728827438851,-500.0,0.00024989,2]
[340199412,1728827438860,-500.0,0.00024989,2]
[340199413,1728827438869,-500.0,0.00024989,2]
[340199414,1728827438881,-500.0,0.00024989,2]
[340199415,1728827438892,-500.0,0.00024989,2]
[340199416,1728827438902,-500.0,0.00024989,2]
[340199417,1728827438911,-500.0,0.00024989,2]
[340199418,1728827438922,-500.0,0.00024989,2]
[340199419,1728827438934,-500.0,0.00024989,2]
[340199420,1728827438946,-500.0,0.00024989,2]
[340199421,1728827438959,-500.0,0.00024989,2]
[340199422,1728827438971,-500.0,0.00024989,2]
[340199423,1728827439057,-500.0,0.00024989,2]
[340199424,1728827439067,-500.0,0.00024989,2]
[340199425,1728827439077,-500.0,0.00024989,2]
[340199426,1728827439087,-500.0,0.00024989,2]
[340199427,1728827439096,-500.0,0.00024989,2]
[340199428,1728827439106,-500.0,0.00024989,2]
[340199429,1728827439118,-500.0,0.00024989,2]
[340199430,1728827439129,-200.0709356,0.00024989,2]
[340199431,1728827439140,-500.0,0.00024989,2]
[340199432,1728827439152,-500.0,0.00024989,2]
[340199433,1728827439161,-500.0,0.00024989,2]
[340199434,1728827439171,-500.0,0.00024989,2]
[340199435,1728827439181,-500.0,0.00024989,2]
[340199436,1728827439191,-500.0,0.00024989,2]
[340199437,1728827439201,-285.40740701,0.0002499,2]
[340199438,1728827439211,-1082.22227506,0.0002499,2]
[340199439,1728827439222,-1500.0,0.00024992,2]
[340199440,1728827439231,-1000.0,0.00024992,2]
[340199441,1728827439243,-398.88018619,0.00025,2]
[340199442,1728827439253,-500.0,0.00025,2]
[340199443,1728827439262,-500.0,0.00025,2]
[340199444,1728827439272,-501.42109849,0.00025,2]
[340199445,1728827439283,-500.0,0.00025,2]
[340199446,1728827439294,-500.0,0.00025,2]
[340199447,1728827439304,-500.46717225,0.00025,2]
[340199448,1728827439314,-250.0,0.00025017,2]
[340199449,1728827439325,-397.651776,0.00025024,2]
[340199450,1728827439335,-152.0,0.0002504,2]
[340199451,1728827439345,-250.0,0.00025083,2]
[340199452,1728827439357,-282.57553308,0.000251,2]
[340199453,1728827439367,-282.57553307,0.000251,2]
[340199454,1728827439379,-282.57553307,0.000251,2]
[340199455,1728827439388,-250.0,0.00025149,2]
[340199456,1728827439399,-4391.0,0.000252,2]
[340199457,1728827439409,-250.0,0.00025215,2]
[340199458,1728827439419,-1500.0,0.00025266,2]
[340199459,1728827439429,-250.0,0.00025281,2]
[340199460,1728827439438,-250.0,0.00025347,2]
[340199461,1728827439448,-1500.0,0.0002554,2]
[340199462,1728827439457,-166.666666,0.00025578,2]
[340199463,1728827439466,-1500.0,0.00025814,2]
[340199464,1728827439476,-1500.0,0.00026088,2]
[340199465,1728827439486,-166.666666,0.00026239,2]
[340199466,1728827439496,-673.95858669,0.00026242,2]
[340199467,1728827439506,-1000.0,0.00026342,2]
[340199468,1728827439516,-1000.0,0.00026342,2]
[340199469,1728827439528,-1000.0,0.00026342,2]
[340199470,1728827439539,-1000.0,0.00026358,2]
[340199471,1728827439550,-504.81501226,0.0002637,2]
[340199472,1728827439562,-1000.0,0.0002637,2]
[340199473,1728827439574,-976.59051778,0.0002637,2]
[340199474,1728827439584,-1000.0,0.0002637,2]
[340199476,1728827439594,-220.109128,0.00026433,7]
[340199478,1728827439603,-220.109128,0.00026433,7]
[340199480,1728827439614,-673.95858667,0.00026503,2]
[340199481,1728827439623,-504.14125426,0.00026747,2]
[340199482,1728827439633,-500.0,0.00026747,2]
[340199483,1728827439643,-673.95858667,0.00026765,2]
[340199484,1728827439654,-166.666666,0.000269,2]
[340199485,1728827439665,-221.59321753,0.00026917,2]
[340199486,1728827439674,-398.09637108,0.00026917,2]
[340199487,1728827439684,-233.08547033,0.00026917,2]
[340199488,1728827439694,-222.32108037,0.00026917,2]
[340199489,1728827439704,-323.43839509,0.00026917,2]
[340199490,1728827439717,-49192.4353158,0.00026918,4]
[340199491,1728827439728,-106939.516365,0.00026918,4]
[340199492,1728827439740,-220.109128,0.00026928,7]
[340199493,1728827439750,-220.109128,0.00026928,7]
[340199494,1728827439760,-220.109128,0.00026928,7]
[340199495,1728827439771,-220.109128,0.00026928,7]
[340199496,1728827439781,-49192.4353158,0.0002699,4]
[340199497,1728827439791,-106939.516365,0.0002699,4]
[340199498,1728827439801,-39092.5222695,0.00027,5]
[340199500,1728827440077,-1961.30215376,0.00027,5]
[340199501,1728827440101,-456.29328946,0.00027,5]
[340199503,1728827440182,-36815.49228728,0.00027,5]
[340199505,1728827440194,-673.95858667,0.00027026,2]
[340199507,1728827440205,-98384.8706315,0.00027033,4]
[340199509,1728827440214,-213879.032729,0.00027033,4]
[340199511,1728827440225,-420.0,0.00027072,2]
[340199514,1728827440236,-500.0,0.00027073,2]
[340199516,1728827440247,-500.0,0.00027073,2]
[340199518,1728827440257,-177.22660455,0.00027073,2]
[340199520,1728827440268,-98384.8706315,0.00027113,4]
[340199522,1728827440277,-153868.36540498,0.00027123,2]
[340199524,1728827440286,-152.0,0.0002713,7]
[340199526,1728827440296,-500.0,0.00027173,2]
[340199528,1728827440307,-500.0,0.00027173,2]
[340199530,1728827440317,-500.0,0.00027173,2]
[340199532,1728827440326,-500.0,0.00027173,2]
[340199534,1728827440335,-673.95858667,0.00027287,2]
[340199536,1728827440346,-3934.89550855,0.00027287,2]
[340199538,1728827440355,-500.0,0.00027373,2]
[340199539,1728827440364,-500.0,0.00027373,2]
[340199540,1728827440374,-500.0,0.00027373,2]
[340199541,1728827440383,-500.0,0.00027373,2]
[340199542,1728827440392,-500.0,0.00027373,2]
[340199543,1728827440402,-500.0,0.00027373,2]
[340199544,1728827440411,-500.0,0.00027373,2]
[340199545,1728827440420,-151.0,0.00027387,7]
[340199546,1728827440429,-151.0,0.00027387,2]
[340199547,1728827440439,-151.0,0.00027387,7]
[340199548,1728827440448,-151.0,0.00027387,7]
[340199549,1728827440458,-151.0,0.00027387,7]
[340199550,1728827440467,-151.0,0.00027387,7]
[340199551,1728827440478,-151.0,0.00027387,7]
[340199552,1728827440488,-151.0,0.00027387,7]
[340199553,1728827440498,-198.481123,0.00027387,7]
[340199554,1728827440507,-355.938576,0.00027387,7]
[340199555,1728827440516,-355.938576,0.00027387,7]
[340199556,1728827440526,-198.481123,0.00027387,7]
[340199557,1728827440536,-151.0,0.00027387,7]
[340199558,1728827440545,-151.0,0.00027387,7]
[340199559,1728827440555,-151.0,0.00027387,7]